[Event "*** Titled Tuesday Blitz"]
[Site "Chess.com"]
[Date "2020.12.01"]
[Round "11"]
[White "nubair1198"]
[Black "MarcoRiehle"]
[Result "0-1"]
[WhiteElo "2828"]
[BlackElo "2710"]
[TimeControl "180+1"]
[EndTime "12:08:15 PST"]
[Termination "MarcoRiehle won by resignation"]

1. d4 {[%clk 0:03:00.9]} 1... d5 {[%clk 0:02:59.3]} 2. c4 {[%clk 0:02:59.4]}
2... e6 {[%clk 0:02:59.4]} 3. Nc3 {[%clk 0:02:51.5]} 3... c5 {[%clk 0:02:59]} 4.
Nf3 {[%clk 0:02:50.4]} 4... cxd4 {[%clk 0:02:58.8]} 5. Nxd4 {[%clk 0:02:50]}
5... e5 {[%clk 0:02:58.7]} 6. Ndb5 {[%clk 0:02:30.8]} 6... a6 {[%clk 0:02:57.2]}
7. Qxd5 {[%clk 0:02:22.9]} 7... axb5 {[%clk 0:02:50.7]} 8. Qxe5+ {[%clk
0:02:22.6]} 8... Be6 {[%clk 0:02:45]} 9. Qxb5+ {[%clk 0:02:19.2]} 9... Nc6
{[%clk 0:02:35.8]} 10. Qxb7 {[%clk 0:02:16]} 10... Nd4 {[%clk 0:01:58.4]} 11.
Qe4 {[%clk 0:02:06.9]} 11... Nf6 {[%clk 0:01:58.6]} 12. Qb1 {[%clk 0:02:01.4]}
12... Bb4 {[%clk 0:01:45.1]} 13. e3 {[%clk 0:01:59.7]} 13... Bf5 {[%clk
0:01:39]} 14. Bd3 {[%clk 0:01:59.3]} 14... Bxd3 {[%clk 0:01:22.2]} 15. Qxd3
{[%clk 0:02:00.2]} 15... Nb3 {[%clk 0:01:21]} 16. Qxd8+ {[%clk 0:01:50]} 16...
Kxd8 {[%clk 0:01:21.9]} 17. Rb1 {[%clk 0:01:49.1]} 17... Nxc1 {[%clk 0:01:13.7]}
18. Rxc1 {[%clk 0:01:48.1]} 18... Rxa2 {[%clk 0:01:14.2]} 19. O-O {[%clk
0:01:43.4]} 19... Rxb2 {[%clk 0:01:12.7]} 20. Nb5 {[%clk 0:01:38.9]} 20... Ke7
{[%clk 0:01:09.3]} 21. Ra1 {[%clk 0:01:37.9]} 21... Rd8 {[%clk 0:01:02]} 22. Nd4
{[%clk 0:01:32.3]} 22... Kf8 {[%clk 0:00:55.3]} 23. Rfb1 {[%clk 0:01:17.2]}
23... Bc3 {[%clk 0:00:49.4]} 24. Nb5 {[%clk 0:01:14.5]} 24... Rxb5 {[%clk
0:00:44.4]} 25. cxb5 {[%clk 0:01:11.1]} 25... Bxa1 {[%clk 0:00:44.7]} 26. Rxa1
{[%clk 0:01:12]} 26... Rb8 {[%clk 0:00:44.8]} 27. Rb1 {[%clk 0:01:12.5]} 27...
Nd5 {[%clk 0:00:44.4]} 28. Rb3 {[%clk 0:01:11.7]} 28... Rb6 {[%clk 0:00:40.3]}
29. g4 {[%clk 0:01:08.3]} 29... Ke7 {[%clk 0:00:36.5]} 30. Kg2 {[%clk
0:01:04.3]} 30... Nc7 {[%clk 0:00:35.9]} 31. Rc3 {[%clk 0:01:03.2]} 31... Ne6
{[%clk 0:00:35.8]} 32. Rb3 {[%clk 0:01:01.6]} 32... Kd6 {[%clk 0:00:33.6]} 33.
h4 {[%clk 0:01:01.4]} 33... Kc5 {[%clk 0:00:31.7]} 34. Rc3+ {[%clk 0:01:02]}
34... Kxb5 {[%clk 0:00:31.5]} 35. Rc8 {[%clk 0:01:02.9]} 35... Rb7 {[%clk
0:00:28.3]} 36. Kf3 {[%clk 0:01:02]} 36... Rc7 {[%clk 0:00:26.8]} 37. Rh8 {[%clk
0:01:01.4]} 37... h6 {[%clk 0:00:25.3]} 38. Rg8 {[%clk 0:00:58.2]} 38... Kc6
{[%clk 0:00:25.1]} 39. Ke4 {[%clk 0:00:57.9]} 39... Kd6 {[%clk 0:00:25]} 40. f4
{[%clk 0:00:58.5]} 40... Rc4+ {[%clk 0:00:22.5]} 41. Kd3 {[%clk 0:00:59.1]}
41... Ra4 {[%clk 0:00:20.4]} 42. Ke2 {[%clk 0:00:59.2]} 42... g6 {[%clk
0:00:18.6]} 43. Rh8 {[%clk 0:00:58.7]} 43... h5 {[%clk 0:00:17.4]} 44. gxh5
{[%clk 0:00:59.6]} 44... gxh5 {[%clk 0:00:17.7]} 45. Rxh5 {[%clk 0:01:00.5]}
45... Rxf4 {[%clk 0:00:17.9]} 46. Rh7 {[%clk 0:00:45.3]} 46... Rf6 {[%clk
0:00:18]} 47. Kd3 {[%clk 0:00:44.6]} 47... Ke5 {[%clk 0:00:17.1]} 48. Rh5+
{[%clk 0:00:44.1]} 48... Rf5 {[%clk 0:00:17.4]} 49. Rh8 {[%clk 0:00:45]} 49...
Nc5+ {[%clk 0:00:17.3]} 50. Ke2 {[%clk 0:00:44.8]} 50... Ne4 {[%clk 0:00:16.9]}
51. Re8+ {[%clk 0:00:41.9]} 51... Kd5 {[%clk 0:00:17.1]} 52. Rd8+ {[%clk
0:00:42.4]} 52... Ke5 {[%clk 0:00:16.9]} 53. Re8+ {[%clk 0:00:42.6]} 53... Kd5
{[%clk 0:00:17.4]} 54. Rd8+ {[%clk 0:00:43.1]} 54... Kc6 {[%clk 0:00:17.7]} 55.
Rd4 {[%clk 0:00:38.7]} 55... Nf6 {[%clk 0:00:14.1]} 56. Ra4 {[%clk 0:00:36]}
56... Kd6 {[%clk 0:00:13.5]} 57. Ra6+ {[%clk 0:00:35]} 57... Ke7 {[%clk
0:00:13.3]} 58. Ra8 {[%clk 0:00:34.7]} 58... Rh5 {[%clk 0:00:12]} 59. Ra7+
{[%clk 0:00:33.7]} 59... Kf8 {[%clk 0:00:12.1]} 60. Ra4 {[%clk 0:00:34.6]} 60...
Kg7 {[%clk 0:00:11.8]} 61. Kf3 {[%clk 0:00:35.1]} 61... Rf5+ {[%clk 0:00:11.5]}
62. Kg3 {[%clk 0:00:34.3]} 62... Re5 {[%clk 0:00:11.9]} 63. Kf3 {[%clk
0:00:34.3]} 63... Re6 {[%clk 0:00:11.7]} 64. e4 {[%clk 0:00:31.1]} 64... Kg6
{[%clk 0:00:10.9]} 65. Kf4 {[%clk 0:00:31.2]} 65... Nh5+ {[%clk 0:00:10.8]} 66.
Kg4 {[%clk 0:00:30.4]} 66... Rf6 {[%clk 0:00:11.1]} 67. e5 {[%clk 0:00:27.5]}
67... Re6 {[%clk 0:00:11.5]} 68. Ra5 {[%clk 0:00:26.6]} 68... Ng7 {[%clk
0:00:10.1]} 69. Kf4 {[%clk 0:00:24.4]} 69... Rb6 {[%clk 0:00:08.8]} 70. Ra4
{[%clk 0:00:22.4]} 70... Rb1 {[%clk 0:00:05.9]} 71. Ke4 {[%clk 0:00:19.3]} 71...
Rg1 {[%clk 0:00:04.9]} 72. Kd5 {[%clk 0:00:19]} 72... Ne6 {[%clk 0:00:05.2]} 73.
Kd6 {[%clk 0:00:18.6]} 73... Rb1 {[%clk 0:00:04.4]} 74. Ra6 {[%clk 0:00:15.5]}
74... Rb7 {[%clk 0:00:04.5]} 75. Ra8 {[%clk 0:00:12.6]} 75... Rb6+ {[%clk
0:00:03.3]} 76. Ke7 {[%clk 0:00:12.5]} 76... Rb7+ {[%clk 0:00:03.8]} 77. Kd6
{[%clk 0:00:13.1]} 77... Rb4 {[%clk 0:00:04.3]} 78. Rg8+ {[%clk 0:00:11.7]}
78... Kf5 {[%clk 0:00:04.7]} 79. h5 {[%clk 0:00:12.3]} 79... Rb6+ {[%clk
0:00:04.7]} 80. Ke7 {[%clk 0:00:12.8]} 80... Kxe5 {[%clk 0:00:04.9]} 81. h6
{[%clk 0:00:12.4]} 81... Rb7+ {[%clk 0:00:04]} 82. Ke8 {[%clk 0:00:13]} 82... f5
{[%clk 0:00:04.7]} 83. Rg1 {[%clk 0:00:11.9]} 83... Kf6 {[%clk 0:00:05.1]} 84.
Rg6+ {[%clk 0:00:05.6]} 84... Kxg6 {[%clk 0:00:03.8]} 85. h7 {[%clk 0:00:06.5]}
85... Rb8+ {[%clk 0:00:02.9]} 86. Ke7 {[%clk 0:00:06.5]} 86... Kxh7 {[%clk
0:00:03.8]} 87. Kxe6 {[%clk 0:00:07.4]} 87... f4 {[%clk 0:00:04.7]} 88. Kf5
{[%clk 0:00:08.3]} 88... f3 {[%clk 0:00:05.6]} 89. Kg4 {[%clk 0:00:09.2]} 89...
f2 {[%clk 0:00:06.5]} 90. Kg3 {[%clk 0:00:10.1]} 90... f1=Q {[%clk 0:00:07.4]}
91. Kh2 {[%clk 0:00:10.3]} 91... Qf7 {[%clk 0:00:08.3]} 0-1

[Event "*** Titled Tuesday Blitz"]
[Site "Chess.com"]
[Date "2020.12.01"]
[Round "11"]
[White "Cambek64"]
[Black "ApacheSVD"]
[Result "1/2-1/2"]
[WhiteElo "2295"]
[BlackElo "2415"]
[TimeControl "180+1"]
[EndTime "12:08:17 PST"]
[Termination "Game drawn - insufficient material"]

1. e4 {[%clk 0:03:00.9]} 1... c5 {[%clk 0:02:57.1]} 2. Nc3 {[%clk 0:03:00.1]}
2... a6 {[%clk 0:02:57]} 3. Nf3 {[%clk 0:02:58.6]} 3... b5 {[%clk 0:02:57.6]} 4.
d4 {[%clk 0:02:58.8]} 4... cxd4 {[%clk 0:02:58.5]} 5. Nxd4 {[%clk 0:02:58.9]}
5... Bb7 {[%clk 0:02:59.4]} 6. Bd3 {[%clk 0:02:59]} 6... e6 {[%clk 0:02:59.9]}
7. a3 {[%clk 0:02:59.1]} 7... Nc6 {[%clk 0:03:00.1]} 8. Be3 {[%clk 0:02:58.3]}
8... Qc7 {[%clk 0:02:58.5]} 9. O-O {[%clk 0:02:57.1]} 9... Nf6 {[%clk
0:02:58.6]} 10. h3 {[%clk 0:02:54.3]} 10... Nxd4 {[%clk 0:02:58.2]} 11. Bxd4
{[%clk 0:02:54]} 11... Bc5 {[%clk 0:02:58.8]} 12. Be2 {[%clk 0:02:49.8]} 12...
Bxd4 {[%clk 0:02:58.1]} 13. Qxd4 {[%clk 0:02:48.9]} 13... Rc8 {[%clk 0:02:52]}
14. Bd3 {[%clk 0:02:45.8]} 14... Qc5 {[%clk 0:02:51.5]} 15. Qxc5 {[%clk
0:02:45.1]} 15... Rxc5 {[%clk 0:02:52.4]} 16. f4 {[%clk 0:02:44.9]} 16... d5
{[%clk 0:02:19.6]} 17. e5 {[%clk 0:02:40.9]} 17... Nd7 {[%clk 0:02:19.9]} 18.
Ne2 {[%clk 0:02:40.9]} 18... Ke7 {[%clk 0:02:18.9]} 19. Nd4 {[%clk 0:02:41.1]}
19... Rhc8 {[%clk 0:02:19]} 20. c3 {[%clk 0:02:40.7]} 20... Nb6 {[%clk
0:02:12.1]} 21. Rae1 {[%clk 0:02:40.8]} 21... Nc4 {[%clk 0:02:12.4]} 22. Re2
{[%clk 0:02:36.9]} 22... Nxa3 {[%clk 0:02:02.4]} 23. bxa3 {[%clk 0:02:35.7]}
23... Rxc3 {[%clk 0:02:02.9]} 24. Rf3 {[%clk 0:02:31.5]} 24... Rxa3 {[%clk
0:02:02.1]} 25. f5 {[%clk 0:02:31.1]} 25... Rcc3 {[%clk 0:01:59.5]} 26. Ree3
{[%clk 0:02:22.2]} 26... b4 {[%clk 0:01:55.9]} 27. f6+ {[%clk 0:02:14.7]} 27...
gxf6 {[%clk 0:01:55.5]} 28. exf6+ {[%clk 0:02:14.8]} 28... Kd6 {[%clk
0:01:56.3]} 29. Nxe6 {[%clk 0:02:13.9]} 29... Rxd3 {[%clk 0:01:44.2]} 30. Rxd3
{[%clk 0:01:59.9]} 30... Rxd3 {[%clk 0:01:42.5]} 31. Rxd3 {[%clk 0:01:59]} 31...
Kxe6 {[%clk 0:01:42.9]} 32. Rd1 {[%clk 0:01:56.6]} 32... Kxf6 {[%clk 0:01:42.4]}
33. Rb1 {[%clk 0:01:49.9]} 33... a5 {[%clk 0:01:39.7]} 34. Ra1 {[%clk
0:01:50.1]} 34... Ke5 {[%clk 0:01:37.3]} 35. Rxa5 {[%clk 0:01:50.4]} 35... Bc6
{[%clk 0:01:17]} 36. Ra6 {[%clk 0:01:49.7]} 36... Kd6 {[%clk 0:01:17.4]} 37. Rb6
{[%clk 0:01:46.3]} 37... Kc5 {[%clk 0:01:17.4]} 38. Rb8 {[%clk 0:01:46.4]} 38...
Bd7 {[%clk 0:01:15.4]} 39. Kf2 {[%clk 0:01:44.5]} 39... Kc4 {[%clk 0:01:14.7]}
40. Ke3 {[%clk 0:01:39.8]} 40... d4+ {[%clk 0:01:14]} 41. Kd2 {[%clk 0:01:38.7]}
41... Bf5 {[%clk 0:01:11.8]} 42. h4 {[%clk 0:01:37.4]} 42... Kb3 {[%clk
0:00:58.2]} 43. Rd8 {[%clk 0:01:25.2]} 43... Ka3 {[%clk 0:00:42.8]} 44. Rxd4
{[%clk 0:01:11.1]} 44... b3 {[%clk 0:00:42.4]} 45. Kc3 {[%clk 0:01:07.1]} 45...
b2 {[%clk 0:00:15.2]} 46. Rd8 {[%clk 0:00:54.5]} 46... b1=N+ {[%clk 0:00:10.8]}
47. Kd4 {[%clk 0:00:50.9]} 47... h5 {[%clk 0:00:09.2]} 48. Ke5 {[%clk
0:00:50.7]} 48... Bg6 {[%clk 0:00:09.3]} 49. Kf4 {[%clk 0:00:49.5]} 49... Nc3
{[%clk 0:00:09.3]} 50. g4 {[%clk 0:00:48.3]} 50... hxg4 {[%clk 0:00:04.7]} 51.
Kxg4 {[%clk 0:00:46.6]} 51... Ne4 {[%clk 0:00:05.3]} 52. Ra8+ {[%clk 0:00:30]}
52... Kb4 {[%clk 0:00:05.3]} 53. Ra6 {[%clk 0:00:30.5]} 53... Nf2+ {[%clk
0:00:03.4]} 54. Kg5 {[%clk 0:00:26.6]} 54... Nh3+ {[%clk 0:00:03.7]} 55. Kh6
{[%clk 0:00:26.3]} 55... Nf4 {[%clk 0:00:03.6]} 56. Rf6 {[%clk 0:00:25.4]} 56...
Nd5 {[%clk 0:00:01.6]} 57. Rf2 {[%clk 0:00:21.3]} 57... Kc5 {[%clk 0:00:01.6]}
58. h5 {[%clk 0:00:19.6]} 58... Bxh5 {[%clk 0:00:01.7]} 59. Kxh5 {[%clk
0:00:19]} 59... Kd6 {[%clk 0:00:02.6]} 60. Rxf7 {[%clk 0:00:18.2]} 60... Ke6
{[%clk 0:00:03.1]} 61. Ra7 {[%clk 0:00:17.8]} 61... Kd6 {[%clk 0:00:03.2]} 62.
Kg5 {[%clk 0:00:18.2]} 62... Kc6 {[%clk 0:00:02.7]} 63. Kf5 {[%clk 0:00:18.4]}
63... Kb6 {[%clk 0:00:03]} 64. Rg7 {[%clk 0:00:16.9]} 64... Kc6 {[%clk
0:00:03.5]} 65. Ke5 {[%clk 0:00:17.2]} 65... Nb6 {[%clk 0:00:02.5]} 66. Rg6+
{[%clk 0:00:14.7]} 66... Kc5 {[%clk 0:00:02.7]} 67. Rg1 {[%clk 0:00:14.3]} 67...
Nc4+ {[%clk 0:00:03.2]} 68. Ke4 {[%clk 0:00:14.6]} 68... Nd2+ {[%clk 0:00:03.3]}
69. Kd3 {[%clk 0:00:13.4]} 69... Nf3 {[%clk 0:00:03.4]} 70. Rg3 {[%clk
0:00:13.1]} 70... Ne5+ {[%clk 0:00:03.4]} 71. Ke4 {[%clk 0:00:13.5]} 71... Nc4
{[%clk 0:00:03.8]} 72. Rg5+ {[%clk 0:00:13.6]} 72... Kc6 {[%clk 0:00:01.7]} 73.
Kd4 {[%clk 0:00:13.9]} 73... Nd6 {[%clk 0:00:02.1]} 74. Rg6 {[%clk 0:00:14.5]}
74... Kd7 {[%clk 0:00:02.3]} 75. Kd5 {[%clk 0:00:15.1]} 75... Nc8 {[%clk
0:00:02.3]} 76. Rg7+ {[%clk 0:00:15.1]} 76... Ne7+ {[%clk 0:00:02.8]} 77. Ke5
{[%clk 0:00:15.5]} 77... Kd8 {[%clk 0:00:01.5]} 78. Ke6 {[%clk 0:00:15.9]} 78...
Nc8 {[%clk 0:00:02]} 79. Rd7+ {[%clk 0:00:15.6]} 79... Ke8 {[%clk 0:00:02.5]}
80. Rh7 {[%clk 0:00:16.1]} 80... Kd8 {[%clk 0:00:02.9]} 81. Rg7 {[%clk 0:00:15]}
81... Nb6 {[%clk 0:00:02.5]} 82. Kd6 {[%clk 0:00:13.2]} 82... Nc8+ {[%clk
0:00:02.9]} 83. Ke6 {[%clk 0:00:09.5]} 83... Nb6 {[%clk 0:00:03.3]} 84. Rb7
{[%clk 0:00:09.4]} 84... Nc8 {[%clk 0:00:03.3]} 85. Rf7 {[%clk 0:00:07.2]} 85...
Nb6 {[%clk 0:00:03.4]} 86. Rb7 {[%clk 0:00:06.5]} 86... Nc8 {[%clk 0:00:03.7]}
87. Kd5 {[%clk 0:00:06.3]} 87... Ne7+ {[%clk 0:00:03.7]} 88. Kd6 {[%clk
0:00:06.3]} 88... Nc8+ {[%clk 0:00:04.3]} 89. Ke6 {[%clk 0:00:06.7]} 89... Ke8
{[%clk 0:00:03.9]} 90. Rb8 {[%clk 0:00:06.2]} 90... Kd8 {[%clk 0:00:03.9]} 91.
Rxc8+ {[%clk 0:00:06.6]} 91... Kxc8 {[%clk 0:00:04.2]} 1/2-1/2